fUSD/lending_fUSD_20240427
["ID","MTS","AMOUNT","RATE_DAILY","PERIOD"]
[323751760,1714237834378,-4191.9255716,0.00011889,2]
[323751761,1714237834387,-267.1301418,0.00011889,2]
[323751762,1714237834396,-15000.0,0.0001189,2]
[323751763,1714237834405,-151.0,0.0001189,2]
[323751764,1714237834414,-151.0,0.0001189,2]
[323751765,1714237834423,-151.0,0.0001189,2]
[323751766,1714237834432,-267.55488526,0.0001189,2]
[323751767,1714237834441,-4561.994001,0.00011891,2]
[323751768,1714237834451,-4932.0624304,0.00011891,2]
[323751769,1714237834460,-5302.1308597,0.00011891,2]
[323751770,1714237834469,-293.4436592,0.00011891,2]
[323751771,1714237834478,-319.7571767,0.00011891,2]
[323751772,1714237834488,-346.0706942,0.00011891,2]
[323751773,1714237834496,-5672.1992891,0.00011892,2]
[323751774,1714237834505,-6042.2677185,0.00011892,2]
[323751775,1714237834514,-372.3842116,0.00011892,2]
[323751776,1714237834523,-398.6977291,0.00011892,2]
[323751777,1714237834532,-162.13441227,0.00011897,2]
[323751778,1714237834541,-210.65880734,0.00011897,2]
[323751779,1714237834550,-156.35072114,0.00011897,2]
[323751780,1714237834560,-641.63389622,0.00011897,2]
[323751781,1714237834569,-386.86573861,0.00011897,2]
[323751782,1714237834578,-155.0,0.00011897,2]
[323751783,1714237834587,-228.27980249,0.00011897,2]
[323751784,1714237834597,-320.19997356,0.00011897,2]
[323751785,1714237834606,-3099.31909228,0.00011897,2]
[323751786,1714237834615,-155.42199688,0.00011897,2]
[323751787,1714237834624,-156.18101022,0.00011897,2]
[323751788,1714237834633,-162.68520801,0.00011897,2]
[323751789,1714237834642,-155.0,0.00011897,2]
[323751790,1714237834651,-236.51827636,0.00011897,2]
[323751791,1714237834661,-155.1119593,0.00011897,2]
[323751792,1714237834670,-155.59422064,0.00011897,2]
[323751793,1714237834681,-224.93914445,0.00011897,2]
[323751794,1714237834691,-212.27868082,0.00011897,2]
[323751795,1714237834700,-313.6027267,0.00011897,2]
[323751796,1714237834709,-221.09434344,0.00011897,2]
[323751797,1714237834719,-309.59058991,0.00011897,2]
[323751798,1714237834729,-157.92129474,0.00011897,2]
[323751799,1714237834740,-238.25600323,0.00011897,2]
[323751800,1714237834750,-288.33988174,0.00011897,2]
[323751801,1714237834759,-239.43929096,0.00011897,2]
[323751802,1714237834769,-246.57309545,0.00011897,2]
[323751803,1714237834779,-166.3767378,0.00011897,2]
[323751804,1714237834788,-155.0,0.00011897,2]
[323751805,1714237834798,-502.49206932,0.00011897,2]
[323751806,1714237834808,-5133.31992279,0.00011897,2]
[323751807,1714237834817,-249.73515181,0.00011897,2]
[323751808,1714237834826,-151.0,0.00011897,2]
[323751809,1714237834836,-151.0,0.00011897,2]
[323751810,1714237834845,-152.89,0.00011897,2]
[323751811,1714237834855,-169.767263,0.00011897,2]
[323751812,1714237834867,-169.767263,0.00011897,2]
[323751813,1714237834876,-182.931102,0.00011897,2]
[323751814,1714237834885,-156.25571,0.00011897,2]
[323751815,1714237834894,-182.931102,0.00011897,2]
[323751816,1714237834904,-156.25571,0.00011897,2]
[323751817,1714237834914,-151.0,0.00011897,2]
[323751818,1714237834923,-151.0,0.00011897,2]
[323751819,1714237834932,-229.614513,0.00011897,2]
[323751820,1714237834944,-229.614513,0.00011897,2]
[323751821,1714237834953,-151.0,0.00011897,2]
[323751822,1714237834962,-151.0,0.00011897,2]
[323751823,1714237834972,-151.0,0.00011897,2]
[323751824,1714237834981,-161.01780826,0.00011898,2]
[323751825,1714237834992,-3357.81305046,0.00011898,2]
[323751826,1714237835001,-1850.75844427,0.00011898,3]
[323751827,1714237835012,-2000.0,0.00011898,2]
[323751828,1714237835022,-233252.45130981,0.00011899,2]
[323751829,1714237835410,-5760.8551,0.00011899,2]
[323751830,1714237835422,-1479.4257306,0.00011899,2]
[323751831,1714237836162,-6501.16532718,0.00011899,2]
[323751832,1714237836174,-5387.05570552,0.00011899,2]
[323751833,1714237836191,-62875.0,0.00011899,2]
[323751834,1714237836202,-14951.02182639,0.00011899,2]
[323751835,1714237836225,-505.854995,0.00011899,2]
[323751836,1714237836237,-6828.9003,0.00011899,2]
[323751837,1714237836248,-6055.9025272,0.00011899,2]
[323751838,1714237836262,-27770.000002,0.00011899,2]
[323751845,1714237838780,-67264.6016,0.00010859,2]
[323751846,1714237838790,-151.0,0.00011368,2]
[323751847,1714237838799,-461.08251497,0.00011666,2]
[323751848,1714237838809,-461.08251497,0.00011799,2]
[323751849,1714237838819,-592.0,0.00011886,2]
[323751850,1714237838828,-151.0,0.00011897,2]
[323751851,1714237838837,-146504.39809527,0.00011899,2]
[323751852,1714237838853,-378.69167502,0.00011899,2]
[323751853,1714237838867,-11366.72017487,0.00011899,2]
[323751854,1714237838884,-3930.55985511,0.00011899,2]
[323751855,1714237838896,-2199.22889,0.00011899,2]
[323751856,1714237838919,-5746.78626034,0.00011899,2]
[323751857,1714237838940,-648.5229323,0.00011899,2]
[323751858,1714237838953,-831.32111341,0.00011899,2]
[323751859,1714237838965,-11432.2072065,0.00011899,2]
[323751860,1714237838976,-795.2682055,0.00011899,2]
[323751861,1714237838990,-1007.38297438,0.00011899,2]
[323751862,1714237839001,-465.7345,0.00011899,2]
[323751863,1714237839011,-689.35729173,0.00011899,2]
[323751864,1714237839022,-44424.874046,0.00011899,2]
[323751865,1714237839033,-1059.77778274,0.00011899,2]
[323751884,1714237840052,-834.9376893,0.00011899,2]
[323751885,1714237840230,-442.88999996,0.00011899,2]
[323751886,1714237840341,-692.48703564,0.00011899,2]
[323751887,1714237840352,-2151.0,0.00011899,2]
[323751888,1714237840364,-472.71033083,0.00011899,2]
[323751889,1714237840398,-1068.68132739,0.00011899,2]
[323751890,1714237840454,-406.44,0.00011899,2]
[323751891,1714237840465,-1490.0,0.00011899,2]
[323751892,1714237840477,-462.49,0.00011899,2]
[323751923,1714237843104,-151.0,0.00011368,2]
[323751925,1714237843114,-173.421317,0.00011897,2]
[323751926,1714237843124,-425.49601459,0.00011899,2]
[323751928,1714237843137,-7112.26964255,0.00011899,2]
[323751932,1714237843208,-5850.98052929,0.00011899,2]
[323751933,1714237843263,-569.85819587,0.00011899,2]
[323751934,1714237843274,-502.77442162,0.00011899,2]
[323751935,1714237843285,-1267.82998508,0.00011899,2]
[323751936,1714237843296,-432.06674985,0.00011899,2]
[323751937,1714237843425,-2535.00000216,0.00011899,2]
[323751944,1714237846129,-811.0,0.00011366,2]
[323751945,1714237846141,-1117.65997474,0.00011366,2]
[323751946,1714237846153,-190.8112859,0.00011366,2]
[323751947,1714237846162,-581.28410701,0.00011367,2]
[323751948,1714237846171,-141.25799117,0.00011899,2]
[323751949,1714237846183,-285.5184421,0.00011899,2]
[323751950,1714237846199,-13359.11067377,0.00011899,2]
[323751951,1714237846211,-1283.41218399,0.00011899,2]
[323751952,1714237846222,-2908.86444618,0.00011899,2]
[323751953,1714237846243,-2957.21493839,0.00011899,2]
[323751954,1714237846256,-10523.1,0.00011899,2]
[323751955,1714237846280,-16429.32181704,0.00011899,2]
[323751956,1714237846292,-3979.33170006,0.00011899,2]
[323751957,1714237846303,-2504.99999905,0.00011899,2]
[323751958,1714237846315,-2037.18162,0.00011899,2]
[323751959,1714237846340,-315.01878,0.00011303,2]
[323751960,1714237846360,-316.01403212,0.00011303,2]
[323751962,1714237846371,-1288.24683318,0.00011303,2]
[323752587,1714237870561,90.67242533,8.899e-05,2]
[323752588,1714237870582,80.58757467,8.899e-05,2]
[323752589,1714237930333,224.88,8.983e-05,2]
[323752591,1714238363555,171.26,8.219e-05,2]
[323752592,1714238435579,213.63,8.219e-05,2]
[323752593,1714238514232,3309.64242533,8.219e-05,2]
[323752594,1714238514258,58106.0,8.219e-05,2]
[323752595,1714238514283,469146.96884736,8.219e-05,2]
[323752596,1714238514307,10224.8445142,8.219e-05,2]
[323752599,1714238982707,210.59,8.219e-05,2]
[323752609,1714239032198,-250.0,9.767e-05,2]
[323752611,1714239032208,-872.00981847,9.771e-05,2]
[323752613,1714239032218,-248.75,9.772e-05,2]
[323752615,1714239032232,-1853.66,9.811e-05,2]
[323752616,1714239032242,-6179.06449145,9.811e-05,2]
[323752617,1714239032251,-1231.6318,9.813e-05,2]
[323752618,1714239032263,-478.16,9.837e-05,2]
[323752619,1714239032272,-169.37,9.86e-05,2]
[323752620,1714239032282,-600.0,9.864e-05,2]
[323752621,1714239032291,-843.82671651,9.879e-05,2]
[323752622,1714239032312,-6523.62328349,9.879e-05,2]
[323752623,1714239032321,-208.68,9.898e-05,2]
[323752624,1714239032331,-1206.97,9.902e-05,2]
[323752625,1714239032340,-23890.0,9.904e-05,2]
[323752626,1714239032350,-657.97,9.904e-05,2]
[323752627,1714239032359,-200.0,9.908e-05,2]
[323752628,1714239032369,-158.42,9.908e-05,2]
[323752629,1714239032379,-991.43,9.913e-05,2]
[323752630,1714239032388,-779.16497207,9.913e-05,2]
[323752631,1714239032411,-551.24148495,9.913e-05,2]
[323752632,1714239032424,-602.76216,9.913e-05,2]
[323752633,1714239032448,-278.44226359,9.913e-05,2]
[323752634,1714239032470,-7788.37911939,9.913e-05,2]
[323752635,1714239032479,-3552.54,9.913e-05,2]
[323752636,1714239032489,-659.08088061,0.0001,2]
[323752637,1714239032513,-2271.67377791,0.0001,2]
[323752638,1714239032525,-236.43361887,0.0001,2]
[323752639,1714239032535,-177.51734597,0.0001,2]
[323752640,1714239032548,-122.47265403,0.0001,2]
[323752641,1714239032558,-787.49093414,0.0001,2]
[323752643,1714239032567,-323.99205487,0.0001,2]
[323752645,1714239032576,-605.34,0.00010082,2]
[323752647,1714239032585,-1852.42,0.00010102,2]
[323752649,1714239032594,-196.87,0.00010131,2]
[323752651,1714239032603,-180.24,0.00010135,2]
[323752653,1714239032612,-668.68,0.00010135,2]
[323752655,1714239032621,-499.99,0.00010157,2]
[323752657,1714239032630,-180.24,0.00010163,2]
[323752659,1714239032639,-180.24,0.00010191,2]
[323752661,1714239032648,-180.24,0.00010218,2]
[323752663,1714239032657,-180.24,0.00010246,2]
[323752665,1714239032667,-8403.3912,0.00010271,2]
[323752667,1714239032676,-180.24,0.00010274,2]
[323752669,1714239032685,-155.91316096,0.00010302,2]
[323752671,1714239032701,-24.32683904,0.00010302,2]
[323752673,1714239032710,-180.24,0.0001033,2]
[323752674,1714239032719,-175.59,0.00010353,2]
[323752675,1714239032729,-180.24,0.00010357,2]
[323752676,1714239032738,-180.24,0.00010385,2]
[323752677,1714239032747,-180.24,0.00010413,2]
[323752678,1714239032757,-2803.8621,0.00010416,2]
[323752679,1714239032768,-180.24,0.00010441,2]
[323752680,1714239032777,-210.59,0.00010465,2]
[323752681,1714239032787,-180.24,0.00010469,2]
[323752682,1714239032796,-939.6,0.00010471,2]
[323752683,1714239032805,-11410.62,0.00010471,2]
[323752684,1714239032814,-499.99,0.00010471,2]
[323752685,1714239032823,-939.6,0.00010474,2]
[323752686,1714239032833,-165.12,0.00010475,2]
[323752687,1714239032842,-150.99,0.00010475,2]
[323752688,1714239032851,-4768.98,0.00010475,2]
[323752689,1714239032860,-939.6,0.00010477,2]
[323752690,1714239032870,-939.6,0.0001048,2]
[323752691,1714239032879,-939.6,0.00010483,2]
[323752692,1714239032888,-939.6,0.00010485,2]
[323752693,1714239032897,-939.6,0.00010488,2]
[323752694,1714239032906,-939.6,0.00010491,2]
[323752695,1714239032915,-939.6,0.00010494,2]
[323752696,1714239032925,-939.6,0.00010496,2]
[323752697,1714239032934,-180.24,0.00010497,2]
[323752698,1714239032945,-939.6,0.00010499,2]
[323752699,1714239032954,-939.6,0.00010502,2]
[323752700,1714239032963,-939.6,0.00010505,2]
[323752701,1714239032973,-939.6,0.00010507,2]
[323752702,1714239032982,-939.6,0.0001051,2]
[323752703,1714239032992,-939.6,0.00010513,2]
[323752704,1714239033001,-939.6,0.00010516,2]
[323752705,1714239033011,-939.6,0.00010518,2]
[323752706,1714239033020,-939.6,0.00010521,2]
[323752707,1714239033029,-939.6,0.00010524,2]
[323752708,1714239033038,-180.24,0.00010524,2]
[323752709,1714239033047,-180.24,0.00010552,2]
[323752710,1714239033056,-180.24,0.0001058,2]
[323752711,1714239033066,-180.24,0.00010608,2]
[323752712,1714239033075,-296.35,0.0001063,10]
[323752713,1714239033085,-180.24,0.00010636,2]
[323752714,1714239033094,-180.24,0.00010663,2]
[323752715,1714239033103,-156.19509503,0.00010707,2]
[323752716,1714239033112,-157.10515557,0.00010707,2]
[323752717,1714239033121,-155.0,0.000109,2]
[323752718,1714239033130,-150.0,0.00010959,2]
[323752719,1714239033140,-2750.0,0.00011,3]
[323752720,1714239033150,-749.48014976,0.00011,2]
[323752721,1714239033159,-19468.7833,0.0001105,2]
[323752722,1714239033168,-478.16,0.00011067,2]
[323752723,1714239033177,-1000.0,0.00011068,2]
[323752724,1714239033187,-1943.78238132,0.00011077,2]
[323752725,1714239033196,-179.73027073,0.00011303,2]
[323752726,1714239033206,-213.47209245,0.00011367,2]
[323752727,1714239033215,-196.87,0.00011397,2]
[323752728,1714239033227,-668.68,0.00011402,2]
[323752729,1714239033236,-150.0,0.00011506,2]
[323752730,1714239033251,-150.0,0.00011529,2]
[323752731,1714239033261,-150.0,0.00011536,2]
[323752732,1714239033271,-150.0,0.00011549,2]
[323752733,1714239033280,-150.0,0.00011568,2]
[323752734,1714239033290,-150.0,0.00011574,2]
[323752735,1714239033300,-150.0,0.00011576,2]
[323752736,1714239033310,-3121.0,0.00011582,2]
[323752737,1714239033321,-2446.0,0.00011582,2]
[323752738,1714239033332,-420.0,0.00011582,2]
[323752739,1714239033341,-1475.0,0.00011582,2]
[323752740,1714239033350,-1641.0,0.00011582,2]
[323752741,1714239033360,-150.0,0.00011582,2]
[323752742,1714239033369,-443.0,0.00011582,2]
[323752743,1714239033378,-214.0,0.00011582,2]
[323752744,1714239033387,-150.0,0.00011589,2]
[323752745,1714239033397,-150.0,0.00011589,2]
[323752746,1714239033407,-150.0,0.00011597,2]
[323752747,1714239033416,-150.0,0.00011606,2]
[323752748,1714239033425,-150.0,0.00011611,2]
[323752749,1714239033434,-150.0,0.00011614,2]
[323752750,1714239033444,-150.0,0.0001164,2]
[323752751,1714239033453,-150.0,0.00011677,2]
[323752752,1714239033462,-150.0,0.0001168,2]
[323752753,1714239033471,-150.0,0.00011694,2]
[323752754,1714239033480,-1000.0,0.00011696,2]
[323752755,1714239033490,-500.0,0.00011696,2]
[323752756,1714239033500,-1500.0,0.00011698,2]
[323752757,1714239033511,-2533.72808082,0.000117,2]
[323752758,1714239033520,-150.0,0.00011703,2]
[323752759,1714239033529,-150.0,0.0001171,2]
[323752760,1714239033538,-1500.0,0.00011722,2]
[323752761,1714239033547,-150.0,0.00011747,2]
[323752762,1714239033556,-150.0,0.00011755,2]
[323752763,1714239033566,-150.0,0.00011759,2]
[323752764,1714239033575,-150.0,0.0001177,2]
[323752765,1714239033584,-263.45536204,0.00011778,2]
[323752766,1714239033593,-7500.0,0.00011798,2]
[323752767,1714239033603,-171.03103542,0.00011799,2]
[323752768,1714239033612,-216.73340824,0.00011799,2]
[323752769,1714239033622,-216.73340824,0.00011799,2]
[323752770,1714239033633,-216.73340824,0.000118,2]
[323752771,1714239033643,-216.73340824,0.000118,2]
[323752772,1714239033652,-177.41950015,0.000118,2]
[323752773,1714239033662,-15625.59600063,0.000118,2]
[323752774,1714239033671,-164.65261113,0.000118,2]
[323752775,1714239033681,-166.64405217,0.000118,2]
[323752776,1714239033691,-183.51757067,0.000118,2]
[323752777,1714239033700,-352.0,0.000118,2]
[323752778,1714239033709,-171.03103542,0.000118,2]
[323752779,1714239033717,-1000.0,0.000118,2]
[323752780,1714239033726,-223.0,0.000118,2]
[323752781,1714239033734,-1500.0,0.00011819,2]
[323752782,1714239033743,-294.48298891,0.00011838,2]
[323752783,1714239033752,-219.0,0.0001188,2]
[323752784,1714239033763,-158.37977735,0.00011891,2]
[323752785,1714239033773,-1230.64586543,0.00011897,2]
[323752786,1714239033783,-3969.23899774,0.00011897,2]
[323752787,1714239033792,-7341.48739818,0.00011897,2]
[323752788,1714239033801,-305.33150416,0.00011897,2]
[323752789,1714239033810,-3413.36288726,0.00011897,2]
[323752790,1714239033819,-167.36827021,0.00011897,2]
[323752791,1714239033828,-313.7807292,0.00011897,2]
[323752792,1714239033838,-379.03771596,0.00011897,2]
[323752793,1714239033847,-487.34598641,0.00011897,2]
[323752794,1714239033857,-1709.0705605,0.00011897,2]
[323752795,1714239033866,-158.24841086,0.00011897,2]
[323752796,1714239033875,-155.64996789,0.00011898,2]
[323752797,1714239033884,-35264.29285231,0.00011898,2]
[323752798,1714239033893,-161.01780826,0.00011898,2]
[323752799,1714239033902,-5848.77040818,0.00011898,2]
[323752800,1714239033911,-217363.41160822,0.00011899,2]
[323752827,1714239038289,-1140.0,0.00011582,2]
[323752829,1714239038299,-216.73340824,0.000118,2]
[323752831,1714239038308,-446.26659176,0.00011899,2]
[323752833,1714239038347,-6008.8,0.00011899,2]
[323752834,1714239038383,-775.896,0.00011899,2]
[323752835,1714239038394,-438.34121292,0.00011899,2]
[323752836,1714239038445,-328504.14494456,0.00011899,2]
[323752837,1714239038456,-73275.17689989,0.00011899,2]
[323752838,1714239038466,-3000.0,0.00011899,2]
[323752839,1714239038475,-537.0,0.000119,2]
[323752840,1714239038484,-177492.41503989,0.000119,2]
[323752841,1714239038494,-250.0,0.000119,2]
[323752842,1714239038504,-250.0,0.000119,2]
[323752843,1714239038513,-250.0,0.000119,2]
[323752844,1714239038524,-250.0,0.000119,2]
[323752845,1714239038533,-852950.26747742,0.000119,2]
[323752846,1714239038543,-1000.0,0.000119,2]
[323752847,1714239038552,-15625.59600059,0.000119,2]
[323752848,1714239038561,-151.0,0.000119,2]
[323752849,1714239038570,-188.271911,0.000119,2]
[323752850,1714239038580,-150.859649,0.000119,2]
[323752851,1714239038589,-151.0,0.000119,2]
[323752852,1714239038598,-151.0,0.000119,2]
[323752853,1714239038607,-151.0,0.000119,2]
[323752854,1714239038616,-151.0,0.000119,2]
[323752855,1714239038625,-151.0,0.000119,2]
[323752856,1714239038634,-151.0,0.000119,2]
[323752857,1714239038644,-151.0,0.000119,2]
[323752858,1714239038653,-183.69161,0.000119,2]
[323752859,1714239038662,-183.69161,0.000119,2]
[323752861,1714239038672,-151.0,0.000119,2]
[323752863,1714239038681,-151.0,0.000119,2]
[323752865,1714239038691,-209.081164,0.000119,2]
[323752867,1714239038700,-209.081164,0.000119,2]
[323752868,1714239038710,-151.0,0.000119,2]
[323752869,1714239038719,-151.0,0.000119,2]
[323752870,1714239038729,-151.0,0.000119,2]
[323752871,1714239038739,-151.0,0.000119,2]
[323752872,1714239038749,-151.0,0.000119,2]
[323752873,1714239038759,-771.268,0.000119,2]
[323752874,1714239038769,-151.0,0.000119,2]
[323752875,1714239038779,-151.0,0.000119,2]
[323752876,1714239038789,-1630.106,0.000119,2]
[323752877,1714239038798,-895.1245971,0.000119,2]
[323752878,1714239038807,-282.21433169,0.000119,2]
[323752879,1714239038817,-466.28357754,0.000119,2]
[323752880,1714239038827,-10000.0,0.000119,2]
[323752881,1714239038837,-665.0454,0.000119,2]
[323752882,1714239038847,-241.6076281,0.000119,2]
[323752883,1714239038857,-3227.57467814,0.000119,2]
[323752884,1714239038866,-3298.94144557,0.000119,2]
[323752885,1714239038876,-166.64405211,0.00011983,2]
[323752886,1714239038886,-173.30521412,0.00011995,2]
[323752887,1714239038896,-3488.85843127,0.00011995,2]
[323752888,1714239038905,-320.09501962,0.00011995,2]
[323752889,1714239038914,-158.0,0.00011996,2]
[323752890,1714239038924,-2000.0,0.00011998,2]
[323752891,1714239038935,-20349.0,0.00011998,2]
[323752892,1714239038945,-11621.54757708,0.00011999,2]
[323752893,1714239038955,-1486423.11012732,0.00012,2]
[323752894,1714239038969,-1106789.44368908,0.00012,2]
[323752895,1714239038981,-1599.77159946,0.00012,2]
[323752896,1714239038993,-32690.41151099,0.00012,2]
[323752900,1714239040245,-643.6999,0.00011797,2]
[323752901,1714239040259,-1382.65566109,0.00011898,2]
[323752902,1714239040275,-456.35582266,0.00011898,2]
[323752903,1714239040288,-827.53697999,0.00011898,2]
[323752904,1714239040420,-1110.59777071,0.00011898,2]
[323752905,1714239040624,-467.26280354,0.00011898,2]
[323752906,1714239040691,-324.62044138,0.00011898,2]
[323752907,1714239040702,-3860.14954508,0.00012,2]
[323752908,1714239040772,-339.60935427,0.00012,2]
[323752909,1714239040786,-19897.66183211,0.00012,2]
[323752975,1714239043499,-105860.9815735,0.00012,2]
[323752976,1714239043518,-20892.179115,0.00012,2]
[323752977,1714239043530,-565.8,0.00012,2]
[323752978,1714239043606,-1231.76912544,0.00012,2]
[323752979,1714239043625,-5715.72049197,0.00012,2]
[323752980,1714239043640,-6009.99999999,0.00012,2]
[323752981,1714239043660,-600.6,0.00012,2]
[323752991,1714239046159,-155.6499,9.713e-05,2]
[323752992,1714239046169,-323.99205487,0.00011999,2]
[323752993,1714239046179,-162.33273005,0.00011999,2]
[323752994,1714239046188,-1359.52531508,0.00012,2]
[323752995,1714239046200,-16913.54416816,0.00012,2]
[323752996,1714239046211,-14612.17071175,0.00012,2]
[323752997,1714239046223,-199777.34517567,0.00012,2]
[323752998,1714239046532,-622923.78846691,0.00012,2]
[323752999,1714239046544,-1608.61590827,0.00012,2]
[323753000,1714239046555,-314.15305549,0.00012,2]
[323753001,1714239046576,-771.41124063,0.00012,2]
[323753002,1714239046587,-1061.78116083,0.00012,2]
[323753003,1714239046607,-768.06384375,0.00012,2]
[323753004,1714239046618,-7986.02306445,0.00012,2]
[323753005,1714239046629,-129867.02111512,0.00012,2]
[323753006,1714239046640,-266.8651973,0.00012,2]
[323753007,1714239046651,-3814.42435161,0.00012,2]
[323753008,1714239046676,-1028.03159346,0.00012,2]
[323753009,1714239046686,-6000.0,0.00012,2]
[323753010,1714239046698,-64654.50452766,0.00012,2]
[323753011,1714239046709,-757.39838594,0.00012,2]
[323753012,1714239046720,-905.454,0.00012,2]
[323753013,1714239058394,943.51586166,8.219e-05,2]
[323753014,1714239078015,943.51586166,8.219e-05,2]
[323753015,1714239136508,943.51586166,8.219e-05,2]
[323753016,1714239173057,943.51586166,8.219e-05,2]
[323753017,1714239190531,943.51586166,8.219e-05,2]
[323753018,1714239208545,941.5568917,8.219e-05,2]
[323753019,1714239278753,407.88,0.0001064,10]
[323753020,1714239653312,-167.43493362,8.588e-05,2]
[323753021,1714239653336,-155.0,8.589e-05,2]
[323753022,1714239653355,-236.62812511,8.589e-05,2]
[323753023,1714239653376,-3440.93694127,8.59e-05,2]
[323753024,1714239654386,-3903.38818879,8.59e-05,2]
[323753025,1714239654410,-96.61181121,8.591e-05,2]
[323753026,1714239655403,-405.75122621,8.591e-05,2]
[323753027,1714239655429,-502.3630374,8.592e-05,2]
[323753028,1714239655451,-502.3630374,8.592e-05,2]
[323753029,1714239764573,373.89,0.0001063,10]
[323753030,1714240007598,872.00981847,8.592e-05,2]
[323753031,1714240013714,327.07,8.219e-05,2]
[323753037,1714240089261,1390.44288052,8.219e-05,2]
[323753038,1714240089284,4000.0,8.219e-05,2]
[323753039,1714240089306,4000.0,8.219e-05,2]
[323753040,1714240089328,4000.0,8.219e-05,2]
[323753041,1714240089351,160412.04725766,8.219e-05,2]
[323753042,1714240105242,439785.37505931,8.219e-05,2]
[323753043,1714240109917,565.63009497,8.218e-05,2]
[323753044,1714240132986,851.10886042,8.219e-05,2]
[323753048,1714240160812,1471.99909209,8.219e-05,2]
[323753049,1714240161256,65504.00030863,8.219e-05,2]
[323753050,1714240169450,399.3527009,8.219e-05,2]
[323753051,1714240172007,20176.31019024,8.219e-05,2]
[323753052,1714240172330,173.13094208,8.219e-05,2]
[323753053,1714240173179,1374.60563136,8.219e-05,2]
[323753054,1714240174259,559.74204524,8.219e-05,2]
[323753055,1714240178833,7501.09882979,8.219e-05,2]
[323753056,1714240184946,19680.8590078,8.219e-05,2]
[323753057,1714240191424,399.3527009,8.219e-05,2]
[323753058,1714240193153,1374.60563136,8.219e-05,2]
[323753059,1714240194330,173.0765999,8.219e-05,2]
[323753060,1714240194634,1471.99909209,8.219e-05,2]
[323753061,1714240196406,559.74204524,8.219e-05,2]
[323753062,1714240196614,7501.09882979,8.219e-05,2]
[323753063,1714240198712,943.34796342,8.219e-05,2]
[323753064,1714240202637,155.0,8.219e-05,2]
[323753065,1714240205097,19680.8590078,8.219e-05,2]
[323753066,1714240206965,365.88218524,8.219e-05,2]
[323753067,1714240207985,2140.6438848,8.219e-05,2]
[323753068,1714240208557,866.68214589,8.219e-05,2]
[323753069,1714240210786,155.09292972,8.219e-05,2]
[323753070,1714240211169,1374.60563136,8.219e-05,2]
[323753071,1714240213131,7501.09882979,8.219e-05,2]
[323753072,1714240213427,361.34595815,8.219e-05,2]
[323753073,1714240214196,559.74204524,8.219e-05,2]
[323753074,1714240214707,1471.99909209,8.219e-05,2]
[323753075,1714240216365,173.13094208,8.219e-05,2]
[323753076,1714240216657,943.34796342,8.219e-05,2]
[323753077,1714240216917,288.51985909,8.219e-05,2]
[323753078,1714240217034,344.58843666,8.219e-05,2]
[323753079,1714240219447,399.3527009,8.219e-05,2]
[323753080,1714240221286,546.11591732,6.575e-05,2]
[323753081,1714240222611,155.0,8.219e-05,2]
[323753082,1714240224199,217.06502401,8.219e-05,2]
[323753083,1714240224962,19680.8590078,8.219e-05,2]
[323753084,1714240227183,1374.60563136,8.219e-05,2]
[323753085,1714240230192,559.74204524,8.219e-05,2]
[323753086,1714240230450,866.68214589,8.219e-05,2]
[323753087,1714240230868,252.29169346,8.219e-05,2]
[323753088,1714240230937,365.88218524,8.219e-05,2]
[323753101,1714240232623,7501.09882979,8.219e-05,2]
[323753103,1714240232897,288.51985909,8.219e-05,2]
[323753109,1714240232996,212.52645814,8.219e-05,2]
[323753110,1714240233020,-159.41,9.731e-05,2]
[323753111,1714240233030,-155.0,9.809e-05,2]
[323753112,1714240233039,-200.0,9.81e-05,2]
[323753113,1714240233050,-250.0,9.823e-05,2]
[323753114,1714240233059,-1827.95,9.84e-05,2]
[323753115,1714240233068,-2653.15,9.893e-05,2]
[323753116,1714240233077,-196.87,9.908e-05,2]